[Event "Live Chess"]
[Site "Chess.com"]
[Date "2024.06.02"]
[Round "-"]
[White "DoYouLikeCurry"]
[Black "Nazar-Makarchuk"]
[Result "0-1"]
[WhiteElo "1438"]
[BlackElo "1459"]
[TimeControl "300"]
[EndTime "6:40:09 PDT"]
[Termination "Nazar-Makarchuk won by checkmate"]

1. e4 {[%clk 0:04:57.4]} 1... d5 {[%clk 0:04:59.2]} 2. exd5 {[%clk 0:04:56.1]}
2... Qxd5 {[%clk 0:04:58.2]} 3. Nc3 {[%clk 0:04:55.3]} 3... Qd8 {[%clk
0:04:57.4]} 4. d4 {[%clk 0:04:53.6]} 4... Nf6 {[%clk 0:04:57]} 5. Nf3 {[%clk
0:04:50]} 5... e6 {[%clk 0:04:56.6]} 6. Be3 {[%clk 0:04:34.6]} 6... Nc6 {[%clk
0:04:51.4]} 7. Bb5 {[%clk 0:04:28.7]} 7... Bd7 {[%clk 0:04:45]} 8. Qd2 {[%clk
0:04:17.9]} 8... a6 {[%clk 0:04:43.9]} 9. Bd3 {[%clk 0:03:47]} 9... Bb4 {[%clk
0:04:39.3]} 10. O-O {[%clk 0:03:34.4]} 10... O-O {[%clk 0:04:36.5]} 11. Rfe1
{[%clk 0:03:21.5]} 11... Nd5 {[%clk 0:04:15.1]} 12. Ng5 {[%clk 0:02:54.7]} 12...
Nxe3 {[%clk 0:04:04.2]} 13. Qxe3 {[%clk 0:02:37.1]} 13... Be7 {[%clk 0:03:46.3]}
14. Qe4 {[%clk 0:02:24.5]} 14... f5 {[%clk 0:03:37.3]} 15. Nxe6 {[%clk
0:02:14.1]} 15... fxe4 {[%clk 0:03:33.4]} 16. Nxd8 {[%clk 0:02:12.5]} 16... exd3
{[%clk 0:03:31]} 17. Nxc6 {[%clk 0:02:06.7]} 17... Bxc6 {[%clk 0:03:24.1]} 18.
Rxe7 {[%clk 0:01:59.8]} 18... dxc2 {[%clk 0:03:20.8]} 19. Rc1 {[%clk 0:01:53.8]}
19... Rad8 {[%clk 0:03:18.6]} 20. Ne2 {[%clk 0:01:48]} 20... Bb5 {[%clk
0:03:13]} 21. Kf1 {[%clk 0:01:43.6]} 21... Bxe2+ {[%clk 0:03:11.3]} 22. Kxe2
{[%clk 0:01:42.3]} 22... Rxd4 {[%clk 0:03:08.8]} 23. Rxc2 {[%clk 0:01:40.8]}
23... Rc8 {[%clk 0:03:04.9]} 24. Rexc7 {[%clk 0:01:38.5]} 24... Rxc7 {[%clk
0:03:03.4]} 25. Rxc7 {[%clk 0:01:38.2]} 25... Rb4 {[%clk 0:03:02.7]} 26. b3
{[%clk 0:01:36.7]} 26... a5 {[%clk 0:03:00.2]} 27. Kd3 {[%clk 0:01:35.9]} 27...
b6 {[%clk 0:02:57.1]} 28. Ra7 {[%clk 0:01:33.3]} 28... Rb5 {[%clk 0:02:48.3]}
29. Kc4 {[%clk 0:01:31.4]} 29... Rc5+ {[%clk 0:02:45.6]} 30. Kd3 {[%clk
0:01:28.9]} 30... Rd5+ {[%clk 0:02:42.6]} 31. Kc3 {[%clk 0:01:24.5]} 31... Rc5+
{[%clk 0:02:40.8]} 32. Kd3 {[%clk 0:01:18.3]} 32... Rd5+ {[%clk 0:02:39.1]} 33.
Kc4 {[%clk 0:01:05.1]} 33... Rd2 {[%clk 0:02:34.4]} 34. Ra8+ {[%clk 0:01:02.7]}
34... Kf7 {[%clk 0:02:32.9]} 35. Rb8 {[%clk 0:01:00.8]} 35... Rxa2 {[%clk
0:02:29.8]} 36. Rxb6 {[%clk 0:00:58.6]} 36... Rxf2 {[%clk 0:02:28.4]} 37. Rb7+
{[%clk 0:00:57.2]} 37... Kg8 {[%clk 0:02:25.9]} 38. Ra7 {[%clk 0:00:54.6]} 38...
Rxg2 {[%clk 0:02:21.1]} 39. Rxa5 {[%clk 0:00:47.9]} 39... Rxh2 {[%clk
0:02:20.5]} 40. Ra1 {[%clk 0:00:42]} 40... g5 {[%clk 0:02:16.3]} 41. Kb5 {[%clk
0:00:38.9]} 41... Rb2 {[%clk 0:02:14.6]} 42. b4 {[%clk 0:00:36.7]} 42... h5
{[%clk 0:02:13.8]} 43. Ra8+ {[%clk 0:00:31.9]} 43... Kg7 {[%clk 0:02:12.7]} 44.
Rd8 {[%clk 0:00:28.7]} 44... g4 {[%clk 0:02:11]} 45. Rd5 {[%clk 0:00:25.8]}
45... Kh6 {[%clk 0:02:09.8]} 46. Kc4 {[%clk 0:00:17.9]} 46... g3 {[%clk
0:02:08.7]} 47. b5 {[%clk 0:00:15.4]} 47... g2 {[%clk 0:02:07.8]} 48. Rd1 {[%clk
0:00:13.7]} 48... h4 {[%clk 0:02:04.9]} 49. Rg1 {[%clk 0:00:12]} 49... h3 {[%clk
0:02:04]} 50. Kc5 {[%clk 0:00:08.3]} 50... h2 {[%clk 0:02:03]} 51. Ra1 {[%clk
0:00:06.3]} 51... h1=Q {[%clk 0:02:01.5]} 52. Rxh1+ {[%clk 0:00:05.6]} 52...
gxh1=Q {[%clk 0:02:00.4]} 53. Kb6 {[%clk 0:00:05.1]} 53... Rxb5+ {[%clk
0:01:59.6]} 54. Kxb5 {[%clk 0:00:04.3]} 54... Qc1 {[%clk 0:01:59.1]} 55. Ka6
{[%clk 0:00:04]} 55... Qb1 {[%clk 0:01:57.7]} 56. Ka7 {[%clk 0:00:03.9]} 56...
Kg7 {[%clk 0:01:56.9]} 57. Ka8 {[%clk 0:00:03.8]} 57... Kf6 {[%clk 0:01:56.3]}
58. Ka7 {[%clk 0:00:03.7]} 58... Ke7 {[%clk 0:01:55.8]} 59. Ka8 {[%clk
0:00:03.6]} 59... Kd6 {[%clk 0:01:55.3]} 60. Ka7 {[%clk 0:00:03.5]} 60... Kc7
{[%clk 0:01:54.8]} 61. Ka8 {[%clk 0:00:03.4]} 61... Qb7# {[%clk 0:01:54]} 0-1

[Event "Live Chess"]
[Site "Chess.com"]
[Date "2024.06.02"]
[Round "-"]
[White "gmnorfolk"]
[Black "NottheBishopSacrifice"]
[Result "0-1"]
[WhiteElo "2144"]
[BlackElo "2327"]
[TimeControl "300"]
[EndTime "6:40:14 PDT"]
[Termination "NottheBishopSacrifice won by resignation"]

1. c4 {[%clk 0:04:57.7]} 1... e6 {[%clk 0:04:58.4]} 2. Nf3 {[%clk 0:04:55]} 2...
d5 {[%clk 0:04:57.7]} 3. e3 {[%clk 0:04:53.6]} 3... Nf6 {[%clk 0:04:56.8]} 4.
Nc3 {[%clk 0:04:52.4]} 4... Be7 {[%clk 0:04:56.5]} 5. Qc2 {[%clk 0:04:51.8]}
5... O-O {[%clk 0:04:56]} 6. b3 {[%clk 0:04:51.4]} 6... b6 {[%clk 0:04:55.2]} 7.
Bb2 {[%clk 0:04:50.7]} 7... Bb7 {[%clk 0:04:54.5]} 8. O-O-O {[%clk 0:04:48.2]}
8... c5 {[%clk 0:04:53]} 9. cxd5 {[%clk 0:04:42.8]} 9... exd5 {[%clk 0:04:51.4]}
10. d4 {[%clk 0:04:41.5]} 10... Nc6 {[%clk 0:04:49.7]} 11. a3 {[%clk 0:04:38.9]}
11... Rc8 {[%clk 0:04:42.1]} 12. Bd3 {[%clk 0:04:37]} 12... Nb4 {[%clk
0:04:39.8]} 13. axb4 {[%clk 0:04:27]} 13... cxb4 {[%clk 0:04:39.7]} 14. Kb1
{[%clk 0:04:16.6]} 14... bxc3 {[%clk 0:04:36.5]} 15. Bc1 {[%clk 0:04:15.6]}
15... Ne4 {[%clk 0:04:33.9]} 16. Ne5 {[%clk 0:04:10.4]} 16... f6 {[%clk
0:04:30.5]} 17. Ng4 {[%clk 0:04:04.4]} 17... a5 {[%clk 0:04:25.4]} 18. f3 {[%clk
0:04:02.4]} 18... f5 {[%clk 0:04:19.3]} 19. Ne5 {[%clk 0:03:55.8]} 19... Nd6
{[%clk 0:04:16.3]} 20. g4 {[%clk 0:03:52.2]} 20... b5 {[%clk 0:04:01.8]} 21.
gxf5 {[%clk 0:03:48]} 21... Bf6 {[%clk 0:04:00.8]} 22. Ng4 {[%clk 0:03:41.7]}
22... a4 {[%clk 0:03:57.9]} 23. bxa4 {[%clk 0:03:38.8]} 23... bxa4 {[%clk
0:03:55.6]} 24. e4 {[%clk 0:03:34.8]} 24... Bxd4 {[%clk 0:03:42.2]} 25. e5
{[%clk 0:03:32.5]} 25... Nc4 {[%clk 0:03:25.2]} 26. f6 {[%clk 0:03:30.5]} 26...
Qb6+ {[%clk 0:02:32.1]} 27. Ka1 {[%clk 0:03:19.4]} 27... Qb3 {[%clk 0:02:15.6]}
28. Bxh7+ {[%clk 0:03:15.1]} 28... Kh8 {[%clk 0:02:15.1]} 29. fxg7+ {[%clk
0:03:02.1]} 29... Kxg7 {[%clk 0:02:13.8]} 30. Qg6+ {[%clk 0:02:55.2]} 30... Kh8
{[%clk 0:02:12.2]} 31. Qh6 {[%clk 0:02:12.6]} 31... c2+ {[%clk 0:02:07.6]} 0-1

[Event "Live Chess"]
[Site "Chess.com"]
[Date "2024.06.02"]
[Round "-"]
[White "KeithArkell"]
[Black "Dashman93"]
[Result "0-1"]
[WhiteElo "2420"]
[BlackElo "2140"]
[TimeControl "300"]
[EndTime "6:40:14 PDT"]
[Termination "Dashman93 won by resignation"]

1. d4 {[%clk 0:04:57.5]} 1... Nf6 {[%clk 0:04:58.4]} 2. Nf3 {[%clk 0:04:56.9]}
2... e6 {[%clk 0:04:57.4]} 3. c4 {[%clk 0:04:56.3]} 3... d5 {[%clk 0:04:54.5]}
4. cxd5 {[%clk 0:04:55.3]} 4... exd5 {[%clk 0:04:53.7]} 5. Nc3 {[%clk
0:04:54.3]} 5... Be7 {[%clk 0:04:52.9]} 6. Qc2 {[%clk 0:04:53.8]} 6... O-O
{[%clk 0:04:51.3]} 7. Bg5 {[%clk 0:04:53.5]} 7... c6 {[%clk 0:04:47.2]} 8. e3
{[%clk 0:04:53]} 8... Re8 {[%clk 0:04:43.9]} 9. Bd3 {[%clk 0:04:52.2]} 9... h6
{[%clk 0:04:43]} 10. Bh4 {[%clk 0:04:48.1]} 10... Nbd7 {[%clk 0:04:39.5]} 11.
O-O {[%clk 0:04:47.1]} 11... Ne4 {[%clk 0:04:32.4]} 12. Bxe4 {[%clk 0:04:45.2]}
12... dxe4 {[%clk 0:04:18.9]} 13. Qxe4 {[%clk 0:04:43.5]} 13... Nf6 {[%clk
0:04:09.9]} 14. Bxf6 {[%clk 0:04:41.4]} 14... Bxf6 {[%clk 0:04:09.8]} 15. Qc2
{[%clk 0:04:39]} 15... Bg4 {[%clk 0:04:07.9]} 16. Nd2 {[%clk 0:04:32]} 16... Rc8
{[%clk 0:03:54.8]} 17. Nce4 {[%clk 0:04:25.6]} 17... Bf5 {[%clk 0:03:45.8]} 18.
Nxf6+ {[%clk 0:04:24]} 18... Qxf6 {[%clk 0:03:44.7]} 19. Qc5 {[%clk 0:04:22.6]}
19... b6 {[%clk 0:03:41.9]} 20. Qc4 {[%clk 0:04:18.6]} 20... c5 {[%clk
0:03:39.8]} 21. Nf3 {[%clk 0:04:15]} 21... Be4 {[%clk 0:03:36.3]} 22. Ne5 {[%clk
0:04:12.6]} 22... cxd4 {[%clk 0:03:31.2]} 23. Qxd4 {[%clk 0:04:10.2]} 23... Qxe5
{[%clk 0:03:29.9]} 24. Qxe5 {[%clk 0:04:09.4]} 24... Rxe5 {[%clk 0:03:28.7]} 25.
Rfc1 {[%clk 0:04:08.4]} 25... Rec5 {[%clk 0:03:27.3]} 26. Rxc5 {[%clk
0:04:06.9]} 26... Rxc5 {[%clk 0:03:27.2]} 27. f3 {[%clk 0:04:06.6]} 27... Bg6
{[%clk 0:03:24.5]} 28. e4 {[%clk 0:04:05.9]} 28... Rc2 {[%clk 0:03:23.5]} 29. b4
{[%clk 0:04:05.2]} 29... f6 {[%clk 0:03:21.9]} 30. a4 {[%clk 0:04:04.5]} 30...
Bf7 {[%clk 0:03:18.6]} 31. a5 {[%clk 0:04:02]} 31... b5 {[%clk 0:03:17.1]} 32.
Rd1 {[%clk 0:04:00.5]} 32... Rc4 {[%clk 0:03:06]} 33. Rd8+ {[%clk 0:03:59.1]}
33... Kh7 {[%clk 0:03:04.9]} 34. Rd7 {[%clk 0:03:58.6]} 34... Be6 {[%clk
0:02:59.3]} 35. Rxa7 {[%clk 0:03:57.1]} 35... Rxb4 {[%clk 0:02:58.9]} 36. a6
{[%clk 0:03:56.2]} 36... Ra4 {[%clk 0:02:58]} 37. Rb7 {[%clk 0:03:55.3]} 37...
Bc4 {[%clk 0:02:53.1]} 38. a7 {[%clk 0:03:53.1]} 38... b4 {[%clk 0:02:51.9]} 39.
Rxb4 {[%clk 0:03:52.3]} 39... Ra1+ {[%clk 0:02:45.7]} 40. Kf2 {[%clk 0:03:50.8]}
40... Be6 {[%clk 0:02:38.4]} 41. Rb7 {[%clk 0:03:47.8]} 41... Kg6 {[%clk
0:02:35.1]} 42. h4 {[%clk 0:03:46.3]} 42... h5 {[%clk 0:02:33.9]} 43. f4 {[%clk
0:03:44]} 43... f5 {[%clk 0:02:27.4]} 44. e5 {[%clk 0:03:39.8]} 44... Bd5 {[%clk
0:02:26.1]} 45. Rd7 {[%clk 0:03:38.4]} 45... Be4 {[%clk 0:02:23.3]} 46. g3
{[%clk 0:03:36.6]} 46... Ra2+ {[%clk 0:02:15.5]} 47. Ke3 {[%clk 0:03:35.4]}
47... Ra3+ {[%clk 0:02:14.9]} 48. Kd4 {[%clk 0:03:34.7]} 48... Rd3+ {[%clk
0:02:14]} 0-1

[Event "Live Chess"]
[Site "Chess.com"]
[Date "2024.06.02"]
[Round "-"]
[White "PavelChernomordik"]
[Black "DoctorMantisTobogganMD"]
[Result "1-0"]
[WhiteElo "2508"]
[BlackElo "2202"]
[TimeControl "300"]
[EndTime "6:40:20 PDT"]
[Termination "PavelChernomordik won by resignation"]

1. e4 {[%clk 0:04:55.5]} 1... c6 {[%clk 0:04:58.8]} 2. Nc3 {[%clk 0:04:54.3]}
2... g6 {[%clk 0:04:57.8]} 3. Bc4 {[%clk 0:04:50]} 3... e6 {[%clk 0:04:56.2]} 4.
d4 {[%clk 0:04:48.4]} 4... d5 {[%clk 0:04:55.4]} 5. Bd3 {[%clk 0:04:47.3]} 5...
Bg7 {[%clk 0:04:54.4]} 6. Nf3 {[%clk 0:04:46.1]} 6... Nf6 {[%clk 0:04:50.5]} 7.
e5 {[%clk 0:04:44.3]} 7... Nfd7 {[%clk 0:04:49.7]} 8. Ne2 {[%clk 0:04:42.5]}
8... c5 {[%clk 0:04:47.5]} 9. c3 {[%clk 0:04:41.6]} 9... Nc6 {[%clk 0:04:46.8]}
10. O-O {[%clk 0:04:34.5]} 10... O-O {[%clk 0:04:45]} 11. Bg5 {[%clk 0:04:31.7]}
11... Qb6 {[%clk 0:04:43.3]} 12. Qd2 {[%clk 0:04:29.1]} 12... f6 {[%clk
0:04:38.5]} 13. exf6 {[%clk 0:04:26.6]} 13... Bxf6 {[%clk 0:04:36]} 14. Bxf6
{[%clk 0:04:23.6]} 14... Nxf6 {[%clk 0:04:34.7]} 15. a3 {[%clk 0:04:15.5]} 15...
c4 {[%clk 0:04:33.8]} 16. Bb1 {[%clk 0:04:13.9]} 16... Ne7 {[%clk 0:04:26]} 17.
Ne5 {[%clk 0:04:09.1]} 17... Nf5 {[%clk 0:04:13.8]} 18. Bxf5 {[%clk 0:04:06.2]}
18... exf5 {[%clk 0:04:11.8]} 19. f3 {[%clk 0:04:05.1]} 19... Qd6 {[%clk
0:04:08.9]} 20. Nf4 {[%clk 0:04:02.6]} 20... Bd7 {[%clk 0:04:05.4]} 21. Rfe1
{[%clk 0:04:00.9]} 21... Rae8 {[%clk 0:03:58.9]} 22. h4 {[%clk 0:03:59.8]} 22...
Bc6 {[%clk 0:03:53]} 23. Nh3 {[%clk 0:03:52.2]} 23... Nd7 {[%clk 0:03:46.7]} 24.
f4 {[%clk 0:03:46.9]} 24... Nf6 {[%clk 0:03:45.7]} 25. Ng5 {[%clk 0:03:42.7]}
25... Ne4 {[%clk 0:03:38.9]} 26. Nxe4 {[%clk 0:03:40.7]} 26... fxe4 {[%clk
0:03:36.7]} 27. Rf1 {[%clk 0:03:39.1]} 27... Bd7 {[%clk 0:03:24.8]} 28. Rae1
{[%clk 0:03:35.5]} 28... Rf6 {[%clk 0:03:19.1]} 29. g4 {[%clk 0:03:20]} 29...
Qe7 {[%clk 0:03:03.5]} 30. Qe3 {[%clk 0:03:10.8]} 30... Rb6 {[%clk 0:03:01.2]}
31. Rf2 {[%clk 0:03:08.8]} 31... Qxh4 {[%clk 0:02:46.2]} 32. Rh2 {[%clk
0:03:04.3]} 32... Qe7 {[%clk 0:02:44.6]} 33. Ree2 {[%clk 0:02:51.4]} 33... Rf8
{[%clk 0:02:41.8]} 34. Rh6 {[%clk 0:02:41]} 34... Ba4 {[%clk 0:02:36]} 35. Reh2
{[%clk 0:02:39.1]} 35... Bd1 {[%clk 0:02:32.9]} 36. Qh3 {[%clk 0:02:28.4]} 36...
Rxf4 {[%clk 0:00:52.1]} 37. Rxh7 {[%clk 0:02:21.2]} 1-0

[Event "Live Chess"]
[Site "Chess.com"]
[Date "2024.06.02"]
[Round "-"]
[White "jimwad"]
[Black "Bradfield133"]
[Result "1-0"]
[WhiteElo "1315"]
[BlackElo "1838"]
[TimeControl "300"]
[EndTime "6:40:21 PDT"]
[Termination "jimwad won on time"]

1. d4 {[%clk 0:04:59.6]} 1... d6 {[%clk 0:04:56.2]} 2. c4 {[%clk 0:04:58.6]}
2... f5 {[%clk 0:04:55]} 3. Nc3 {[%clk 0:04:57.8]} 3... Nf6 {[%clk 0:04:54.1]}
4. Bf4 {[%clk 0:04:56.5]} 4... g6 {[%clk 0:04:50.5]} 5. Nf3 {[%clk 0:04:54.4]}
5... Bg7 {[%clk 0:04:49.4]} 6. e3 {[%clk 0:04:52.9]} 6... O-O {[%clk 0:04:47.1]}
7. Bd3 {[%clk 0:04:51.5]} 7... Nc6 {[%clk 0:04:33.9]} 8. a3 {[%clk 0:04:47.3]}
8... a5 {[%clk 0:04:27.5]} 9. O-O {[%clk 0:04:45.2]} 9... e6 {[%clk 0:04:11.6]}
10. d5 {[%clk 0:04:30.8]} 10... exd5 {[%clk 0:03:31.6]} 11. cxd5 {[%clk
0:04:22.5]} 11... Ne7 {[%clk 0:03:29.6]} 12. Bc4 {[%clk 0:04:11.9]} 12... b6
{[%clk 0:03:24.4]} 13. Re1 {[%clk 0:04:02.6]} 13... h6 {[%clk 0:03:17.5]} 14. h3
{[%clk 0:03:55.8]} 14... Bb7 {[%clk 0:03:04.2]} 15. Rc1 {[%clk 0:03:16.2]} 15...
b5 {[%clk 0:02:38.2]} 16. Bxb5 {[%clk 0:03:04.2]} 16... Nexd5 {[%clk 0:02:31.4]}
17. Nxd5 {[%clk 0:03:02.5]} 17... Bxd5 {[%clk 0:02:19.8]} 18. Bc6 {[%clk
0:03:00]} 18... Bxc6 {[%clk 0:02:17.3]} 19. Rxc6 {[%clk 0:02:56.7]} 19... Qd7
{[%clk 0:01:57.8]} 20. Qc2 {[%clk 0:02:44]} 20... Rfc8 {[%clk 0:01:38.6]} 21.
Rc1 {[%clk 0:02:41.5]} 21... Nd5 {[%clk 0:01:20.7]} 22. Qc4 {[%clk 0:02:30.1]}
22... Qf7 {[%clk 0:01:19.3]} 23. Bxd6 {[%clk 0:02:18.3]} 23... Bxb2 {[%clk
0:01:07.6]} 24. Rc2 {[%clk 0:02:00.2]} 24... Bc3 {[%clk 0:00:32.9]} 25. Rxc3
{[%clk 0:01:57.2]} 25... Nxc3 {[%clk 0:00:31.1]} 26. Qxf7+ {[%clk 0:01:53.8]}
26... Kxf7 {[%clk 0:00:28.8]} 27. Rxc3 {[%clk 0:01:35.3]} 27... cxd6 {[%clk
0:00:27.7]} 28. Rd3 {[%clk 0:01:31.1]} 28... Ke7 {[%clk 0:00:23.3]} 29. Nd4
{[%clk 0:01:27.9]} 29... Rab8 {[%clk 0:00:18.1]} 30. Kh2 {[%clk 0:01:14]} 30...
a4 {[%clk 0:00:17.1]} 31. Ne2 {[%clk 0:01:06.2]} 31... Rb2 {[%clk 0:00:16.4]}
32. Nf4 {[%clk 0:01:01.5]} 32... Rb3 {[%clk 0:00:13.2]} 33. Nxg6+ {[%clk
0:00:53.6]} 33... Ke8 {[%clk 0:00:08.7]} 34. Rxd6 {[%clk 0:00:50.9]} 34... Rxa3
{[%clk 0:00:07.6]} 35. Ne5 {[%clk 0:00:47]} 35... Ra2 {[%clk 0:00:05.3]} 36.
Rxh6 {[%clk 0:00:45.7]} 36... Rcc2 {[%clk 0:00:02.3]} 37. Rh8+ {[%clk
0:00:43.5]} 1-0

[Event "Live Chess"]
[Site "Chess.com"]
[Date "2024.06.02"]
[Round "-"]
[White "vincents82"]
[Black "Ninifu"]
[Result "1-0"]
[WhiteElo "1989"]
[BlackElo "2011"]
[TimeControl "300"]
[EndTime "6:40:37 PDT"]
[Termination "vincents82 won on time"]

1. e4 {[%clk 0:04:57.5]} 1... d5 {[%clk 0:04:58]} 2. exd5 {[%clk 0:04:56.5]}
2... Nf6 {[%clk 0:04:56.6]} 3. d4 {[%clk 0:04:52.7]} 3... Bg4 {[%clk 0:04:54.9]}
4. Be2 {[%clk 0:04:51.6]} 4... Bxe2 {[%clk 0:04:53.3]} 5. Qxe2 {[%clk
0:04:50.8]} 5... Qxd5 {[%clk 0:04:52.3]} 6. Nf3 {[%clk 0:04:49.2]} 6... e6
{[%clk 0:04:48.8]} 7. O-O {[%clk 0:04:46.8]} 7... Nc6 {[%clk 0:04:47.9]} 8. Be3
{[%clk 0:04:39.3]} 8... O-O-O {[%clk 0:04:46.7]} 9. c4 {[%clk 0:04:38.2]} 9...
Qf5 {[%clk 0:04:31.6]} 10. Nc3 {[%clk 0:04:35.8]} 10... Rg8 {[%clk 0:04:26]} 11.
a3 {[%clk 0:04:33.5]} 11... g5 {[%clk 0:04:23.2]} 12. Bxg5 {[%clk 0:04:30.6]}
12... Rxg5 {[%clk 0:04:09.3]} 13. Nxg5 {[%clk 0:04:24.7]} 13... Qxg5 {[%clk
0:04:08.5]} 14. d5 {[%clk 0:04:14.2]} 14... exd5 {[%clk 0:03:56.2]} 15. cxd5
{[%clk 0:04:12.6]} 15... Nxd5 {[%clk 0:03:23.1]} 16. Nxd5 {[%clk 0:04:09.6]}
16... Rxd5 {[%clk 0:03:22.1]} 17. Qe8+ {[%clk 0:03:57]} 17... Rd8 {[%clk
0:02:55.9]} 18. Qxf7 {[%clk 0:03:54.5]} 18... h5 {[%clk 0:02:50.6]} 19. Rad1
{[%clk 0:03:49.7]} 19... Bd6 {[%clk 0:02:49.1]} 20. Rd5 {[%clk 0:03:39.2]} 20...
Be5 {[%clk 0:02:13.4]} 21. Qe6+ {[%clk 0:03:29.4]} 21... Kb8 {[%clk 0:02:07.5]}
22. Rxd8+ {[%clk 0:03:25.2]} 22... Qxd8 {[%clk 0:02:01]} 23. Re1 {[%clk
0:03:18.7]} 23... Bd6 {[%clk 0:01:31.9]} 24. Qe8 {[%clk 0:03:14.3]} 24... Kc8
{[%clk 0:01:26.2]} 25. Qxd8+ {[%clk 0:03:12.6]} 25... Kxd8 {[%clk 0:01:21.5]}
26. f3 {[%clk 0:03:11.8]} 26... Ne5 {[%clk 0:01:15.8]} 27. h3 {[%clk 0:03:09]}
27... Bc5+ {[%clk 0:01:08.5]} 28. Kh2 {[%clk 0:03:05.6]} 28... Bd6 {[%clk
0:01:05.1]} 29. Kh1 {[%clk 0:02:51.5]} 29... Nd3 {[%clk 0:00:59.4]} 30. Re6
{[%clk 0:02:43.3]} 30... Nxb2 {[%clk 0:00:53.3]} 31. g4 {[%clk 0:02:42.1]} 31...
Kd7 {[%clk 0:00:46.5]} 32. Rg6 {[%clk 0:02:39.1]} 32... hxg4 {[%clk 0:00:40.4]}
33. fxg4 {[%clk 0:02:37.4]} 33... Bxa3 {[%clk 0:00:38.5]} 34. h4 {[%clk
0:02:36.8]} 34... Nd3 {[%clk 0:00:21.2]} 35. h5 {[%clk 0:02:34.9]} 35... Ne5
{[%clk 0:00:20.4]} 36. Rg7+ {[%clk 0:02:33.7]} 36... Ke6 {[%clk 0:00:13.8]} 37.
h6 {[%clk 0:02:32.7]} 37... Bf8 {[%clk 0:00:09.9]} 38. Rxc7 {[%clk 0:02:28.3]}
38... Bxh6 {[%clk 0:00:08]} 39. Rxb7 {[%clk 0:02:22.7]} 39... Nxg4 {[%clk
0:00:07.1]} 40. Rxa7 {[%clk 0:02:19.2]} 40... Kf5 {[%clk 0:00:05.3]} 41. Ra5+
{[%clk 0:02:17.2]} 41... Kf4 {[%clk 0:00:03]} 42. Ra4+ {[%clk 0:02:15.8]} 42...
Kg3 {[%clk 0:00:01.3]} 43. Ra3+ {[%clk 0:02:14.6]} 43... Ne3 {[%clk 0:00:00.6]}
44. Kg1 {[%clk 0:02:12.3]} 1-0

[Event "Live Chess"]
[Site "Chess.com"]
[Date "2024.06.02"]
[Round "-"]
[White "Anareza_Firouzja"]
[Black "agamilewska"]
[Result "1-0"]
[WhiteElo "1887"]
[BlackElo "1764"]
[TimeControl "300"]
[EndTime "6:40:42 PDT"]
[Termination "Anareza_Firouzja won by resignation"]

1. e4 {[%clk 0:04:58.1]} 1... e5 {[%clk 0:04:57]} 2. Nf3 {[%clk 0:04:56.6]} 2...
Nc6 {[%clk 0:04:55.7]} 3. Bb5 {[%clk 0:04:56.2]} 3... Bc5 {[%clk 0:04:54.4]} 4.
c3 {[%clk 0:04:54]} 4... d6 {[%clk 0:04:52.7]} 5. d4 {[%clk 0:04:52.3]} 5...
exd4 {[%clk 0:04:51.8]} 6. cxd4 {[%clk 0:04:52.2]} 6... Bb4+ {[%clk 0:04:51.1]}
7. Nc3 {[%clk 0:04:50.6]} 7... Bxc3+ {[%clk 0:04:50.5]} 8. bxc3 {[%clk
0:04:49.2]} 8... Bd7 {[%clk 0:04:50.4]} 9. O-O {[%clk 0:04:46.4]} 9... Nge7
{[%clk 0:04:49.1]} 10. h3 {[%clk 0:04:43.8]} 10... O-O {[%clk 0:04:48.1]} 11. a4
{[%clk 0:04:40.8]} 11... a6 {[%clk 0:04:47.3]} 12. Bd3 {[%clk 0:04:39.2]} 12...
h6 {[%clk 0:04:45.4]} 13. Re1 {[%clk 0:04:37.4]} 13... Ng6 {[%clk 0:04:41.7]}
14. e5 {[%clk 0:04:25.4]} 14... dxe5 {[%clk 0:04:40.3]} 15. Bxg6 {[%clk
0:04:24.8]} 15... fxg6 {[%clk 0:04:36.7]} 16. Nxe5 {[%clk 0:04:24.3]} 16... Nxe5
{[%clk 0:04:35]} 17. Rxe5 {[%clk 0:04:24.2]} 17... Bc6 {[%clk 0:04:26.3]} 18.
Ba3 {[%clk 0:04:16.4]} 18... Re8 {[%clk 0:04:11.9]} 19. Qe2 {[%clk 0:04:08.6]}
19... Rxe5 {[%clk 0:04:10.7]} 20. Qxe5 {[%clk 0:04:08.5]} 20... Qd5 {[%clk
0:04:09.7]} 21. Qxd5+ {[%clk 0:03:58.4]} 21... Bxd5 {[%clk 0:04:09.6]} 22. Re1
{[%clk 0:03:56.1]} 22... b5 {[%clk 0:04:06.4]} 23. a5 {[%clk 0:03:53.6]} 23...
Rc8 {[%clk 0:02:44.6]} 24. Re5 {[%clk 0:03:45.3]} 24... Bf7 {[%clk 0:02:34.6]}
25. Rc5 {[%clk 0:03:31.2]} 25... g5 {[%clk 0:02:30]} 26. Rc6 {[%clk 0:03:29.5]}
26... Bc4 {[%clk 0:02:10]} 27. Bc5 {[%clk 0:03:14.5]} 27... Re8 {[%clk
0:01:52.8]} 28. Rxc7 {[%clk 0:03:03.8]} 28... Re1+ {[%clk 0:01:51.9]} 29. Kh2
{[%clk 0:03:02.3]} 29... Re2 {[%clk 0:01:46.8]} 30. Rc8+ {[%clk 0:02:43.8]}
30... Kh7 {[%clk 0:01:39.1]} 31. Rf8 {[%clk 0:02:36.9]} 31... Kg6 {[%clk
0:01:24.2]} 32. Kg3 {[%clk 0:02:30.9]} 32... Re1 {[%clk 0:01:16]} 33. Ra8 {[%clk
0:02:24.4]} 33... Bd5 {[%clk 0:01:10.3]} 34. Rxa6+ {[%clk 0:02:22]} 34... Kh7
{[%clk 0:01:09.9]} 35. Ra7 {[%clk 0:02:12.2]} 35... Rg1 {[%clk 0:01:07.8]} 36.
f3 {[%clk 0:02:11.6]} 36... Rc1 {[%clk 0:01:04.1]} 37. Bb4 {[%clk 0:02:06.3]}
37... h5 {[%clk 0:00:58.9]} 38. Rd7 {[%clk 0:02:02.3]} 38... h4+ {[%clk
0:00:56.5]} 39. Kh2 {[%clk 0:01:57.3]} 39... Be6 {[%clk 0:00:54.8]} 40. Re7
{[%clk 0:01:50]} 40... Bc4 {[%clk 0:00:52.3]} 41. a6 {[%clk 0:01:45.9]} 41...
Ra1 {[%clk 0:00:50.9]} 42. a7 {[%clk 0:01:43.7]} 42... Kg6 {[%clk 0:00:45.4]}
43. Bc5 {[%clk 0:01:40.3]} 43... Kf6 {[%clk 0:00:43.7]} 44. Rb7 {[%clk
0:01:38.2]} 44... Bd5 {[%clk 0:00:41.9]} 45. Rb8 {[%clk 0:01:36.2]} 45... Kf5
{[%clk 0:00:37.1]} 46. Rxb5 {[%clk 0:01:32.1]} 46... Ra2 {[%clk 0:00:33.9]} 47.
Rb8 {[%clk 0:01:26.6]} 47... Bxf3 {[%clk 0:00:32.2]} 48. a8=Q {[%clk 0:01:25.1]}
48... Rxg2+ {[%clk 0:00:18]} 49. Kh1 {[%clk 0:01:21.8]} 49... Rf2+ {[%clk
0:00:12.9]} 50. Qxf3+ {[%clk 0:01:20.1]} 50... Rxf3 {[%clk 0:00:12.8]} 51. Rf8+
{[%clk 0:01:18.9]} 51... Ke4 {[%clk 0:00:10.7]} 52. Rxf3 {[%clk 0:01:18.8]}
52... Kxf3 {[%clk 0:00:10.1]} 53. Kh2 {[%clk 0:01:17.5]} 53... g4 {[%clk
0:00:08.9]} 54. hxg4 {[%clk 0:01:16.2]} 54... Kxg4 {[%clk 0:00:08.8]} 55. d5
{[%clk 0:01:15.9]} 55... g5 {[%clk 0:00:08.2]} 56. d6 {[%clk 0:01:15.4]} 56...
h3 {[%clk 0:00:07.5]} 57. d7 {[%clk 0:01:14.7]} 57... Kh4 {[%clk 0:00:07.3]} 58.
d8=Q {[%clk 0:01:13.9]} 58... Kg4 {[%clk 0:00:05.2]} 59. Bf2 {[%clk 0:01:12.6]}
1-0